fUST/lending_fUST_20250415
["ID","MTS","AMOUNT","RATE_DAILY","PERIOD"]
[358098597,1744714930589,-500.0,0.00023999,2]
[358098598,1744714930617,-500.0,0.00023999,2]
[358098599,1744714930641,-500.0,0.00023999,2]
[358098600,1744714930664,-500.0,0.00023999,2]
[358098601,1744714930687,-500.0,0.00023999,2]
[358098602,1744714930711,-500.0,0.00023999,2]
[358098603,1744714930735,-500.0,0.00023999,2]
[358098604,1744714930761,-500.0,0.00023999,2]
[358098605,1744714930788,-500.0,0.00023999,2]
[358098606,1744714930813,-500.0,0.00023999,2]
[358098607,1744714930840,-500.0,0.00023999,2]
[358098608,1744714930870,-500.0,0.00023999,2]
[358098609,1744714930894,-500.0,0.00023999,2]
[358098610,1744714930918,-208.50055167,0.00023999,2]
[358098611,1744714930942,-500.0,0.00023999,2]
[358098612,1744714930968,-224.62859638,0.00023999,2]
[358098613,1744714930994,-418.03311107,0.00023999,2]
[358098614,1744714931017,-500.0,0.00023999,2]
[358098615,1744714931045,-500.0,0.00023999,2]
[358098616,1744714931072,-500.0,0.00023999,2]
[358098617,1744714931098,-500.0,0.00023999,2]
[358098618,1744714931124,-500.0,0.00023999,2]
[358098619,1744714931149,-500.0,0.00023999,2]
[358098620,1744714931175,-500.0,0.00023999,2]
[358098621,1744714931200,-500.0,0.00023999,2]
[358098622,1744714931225,-500.0,0.00023999,2]
[358098623,1744714931251,-500.0,0.00023999,2]
[358098624,1744714931276,-500.0,0.00023999,2]
[358098625,1744714931301,-500.0,0.00023999,2]
[358098626,1744714931327,-500.0,0.00023999,2]
[358098627,1744714931355,-500.0,0.00023999,2]
[358098628,1744714931383,-500.0,0.00023999,2]
[358098629,1744714931410,-500.0,0.00023999,2]
[358098630,1744714931550,-500.0,0.00023999,2]
[358098631,1744714931578,-500.0,0.00023999,2]
[358098632,1744714931606,-500.0,0.00023999,2]
[358098633,1744714931631,-500.0,0.00023999,2]
[358098634,1744714931657,-386.21897249,0.00023999,2]
[358098635,1744714931685,-500.0,0.00023999,2]
[358098636,1744714931712,-500.0,0.00023999,2]
[358098637,1744714931737,-500.0,0.00023999,2]
[358098638,1744714931764,-500.0,0.00023999,2]
[358098639,1744714931791,-500.0,0.00023999,2]
[358098640,1744714931817,-500.0,0.00023999,2]
[358098641,1744714931844,-500.0,0.00023999,2]
[358098642,1744714931872,-500.0,0.00023999,2]
[358098643,1744714931898,-500.0,0.00023999,2]
[358098644,1744714931924,-500.0,0.00023999,2]
[358098645,1744714931951,-500.0,0.00023999,2]
[358098646,1744714931980,-500.0,0.00023999,2]
[358098647,1744714932003,-529.6653767,0.00023999,2]
[358098648,1744714932026,-339.52903144,0.00023999,2]
[358098649,1744714932052,-500.0,0.00023999,2]
[358098650,1744714932077,-500.0,0.00023999,2]
[358098651,1744714932101,-500.0,0.00023999,2]
[358098652,1744714932126,-500.0,0.00023999,2]
[358098653,1744714932152,-500.0,0.00023999,2]
[358098654,1744714932176,-500.0,0.00023999,2]
[358098655,1744714932201,-500.0,0.00023999,2]
[358098656,1744714932226,-500.0,0.00023999,2]
[358098657,1744714932251,-500.0,0.00023999,2]
[358098658,1744714932276,-500.0,0.00023999,2]
[358098659,1744714932301,-500.0,0.00023999,2]
[358098660,1744714932326,-500.0,0.00023999,2]
[358098661,1744714932353,-500.0,0.00023999,2]
[358098662,1744714932380,-500.0,0.00023999,2]
[358098663,1744714932409,-200.0,0.00023999,2]
[358098664,1744714932431,-476.96151593,0.00024,2]
[358098665,1744714932455,-62437.7846341,0.00024,2]
[358098666,1744714932479,-1859.24361217,0.00024,15]
[358098716,1744715432197,-381.39078186,0.000218,2]
[358098717,1744715432207,-708.02744885,0.000219,2]
[358098719,1744715432216,-264.634954,0.00022924,2]
[358098721,1744715432226,-250.0,0.00022949,2]
[358098723,1744715432236,-573.2054017,0.00023363,2]
[358098725,1744715432246,-300.0,0.00023898,2]
[358098726,1744715432256,-300.0,0.00023898,2]
[358098728,1744715432266,-217.41839349,0.00023899,2]
[358098730,1744715432276,-493.99705109,0.00023899,2]
[358098732,1744715432286,-170.59765338,0.00023899,2]
[358098735,1744715432302,-329.40234662,0.00023899,2]
[358098736,1744715432313,-500.0,0.00023899,2]
[358098738,1744715432322,-336.82810254,0.00023899,2]
[358098740,1744715432332,-500.0,0.00023899,2]
[358098742,1744715432341,-500.0,0.00023899,2]
[358098744,1744715432351,-500.0,0.00023899,2]
[358098745,1744715432361,-500.0,0.00023899,2]
[358098746,1744715432371,-500.0,0.00023899,2]
[358098747,1744715432381,-500.0,0.00023899,2]
[358098749,1744715432391,-500.0,0.00023899,2]
[358098752,1744715432401,-500.0,0.00023899,2]
[358098753,1744715432411,-500.0,0.00023899,2]
[358098755,1744715432421,-500.0,0.00023899,2]
[358098756,1744715432431,-500.0,0.00023899,2]
[358098757,1744715432441,-273.62189725,0.00023899,2]
[358098758,1744715432451,-500.0,0.00023899,2]
[358098759,1744715432461,-500.0,0.00023899,2]
[358098760,1744715432470,-500.0,0.00023899,2]
[358098761,1744715432480,-500.0,0.00023899,2]
[358098762,1744715432489,-500.0,0.00023899,2]
[358098764,1744715432499,-500.0,0.00023899,2]
[358098765,1744715432509,-500.0,0.00023899,2]
[358098766,1744715432518,-500.0,0.00023899,2]
[358098767,1744715432528,-500.0,0.00023899,2]
[358098768,1744715432538,-500.0,0.00023899,2]
[358098769,1744715432548,-500.0,0.00023899,2]
[358098770,1744715432557,-500.0,0.00023899,2]
[358098771,1744715432567,-500.0,0.00023899,2]
[358098772,1744715432577,-500.0,0.00023899,2]
[358098773,1744715432586,-500.0,0.00023899,2]
[358098774,1744715432596,-500.0,0.00023899,2]
[358098775,1744715432606,-500.0,0.00023899,2]
[358098776,1744715432615,-500.0,0.00023899,2]
[358098777,1744715432625,-300.0,0.00023899,2]
[358098778,1744715432635,-21312.34274576,0.000239,2]
[358098779,1744715432647,-95672.62920324,0.000239,2]
[358098780,1744715432657,-178.49849292,0.00023999,2]
[358098781,1744715432667,-6985.18439094,0.00024,2]
[358098782,1744715432678,-109.06962105,0.00024,2]
[358098783,1744715432688,-281.46735676,0.00024,3]
[358098784,1744715432698,-151.0,0.00024,7]
[358098785,1744715432708,-151.0,0.00024,7]
[358098786,1744715432718,-151.0,0.00024,7]
[358098787,1744715432728,-151.0,0.00024,7]
[358098788,1744715432737,-151.0,0.00024,7]
[358098789,1744715432748,-23436.11544745,0.00024,2]
[358098831,1744715438521,-808.65788362,0.00024,2]
[358098833,1744715438532,-20235.21668116,0.00024,2]
[358099290,1744715443400,-1969.91068621,0.00024,2]
[358099292,1744715443412,-6629.33930052,0.00024,2]
[358099371,1744715444449,-266.46558195,0.00024,2]
[358099393,1744715446302,-1024.95,0.00024,2]
[358099405,1744715446406,-88285.39617433,0.00024,2]
[358099440,1744715482056,-154.81951395,0.000219,2]
[358099443,1744715595375,-300.0,0.000219,2]
[358099444,1744715626655,-197.312059,0.000219,2]
[358099445,1744715645927,-211.242945,0.000219,2]
[358099446,1744715666285,-199.251048,0.000219,2]
[358099463,1744715703183,832.70686939,0.000155,5]
[358099474,1744715783068,-199.2510479,0.00021681,2]
[358099475,1744715783092,-13.32106369,0.000219,2]
[358099476,1744715813670,-300.0,0.000219,2]
[358099477,1744715838186,-237.124644,0.000219,2]
[358099479,1744716084537,-213.32309343,0.000219,2]
[358099499,1744716385841,-210.20099996,0.000198,2]
[358099502,1744716522842,-151.0,0.0002,3]
[358099503,1744716546304,-180.4983712,0.000198,2]
[358099508,1744716596736,-151.0,0.0002,3]
[358099513,1744716603345,-90.89446806,0.000198,2]
[358099514,1744716603372,-184.18834272,0.00019999,2]
[358099515,1744716610679,-115.81165728,0.00019999,2]
[358099516,1744716610706,-184.18834272,0.00019999,2]
[358099517,1744716612282,-115.81165728,0.00019999,2]
[358099518,1744716612308,-120.58429472,0.0002,3]
[358099519,1744716617776,-166.4509017,0.000199,2]
[358099553,1744716632407,-1596.30392927,0.000199,2]
[358099555,1744716632417,-5920.11584527,0.0002,3]
[358099557,1744716632431,-12571.49,0.0002,3]
[358099559,1744716632443,-12291.94592153,0.0002,3]
[358099562,1744716632480,-431.68,0.0002,3]
[358099563,1744716634912,-250.0,0.0002,3]
[358099597,1744716638642,-7843.66242138,0.0002,3]
[358099599,1744716638653,-160.0,0.0002,3]
[358099601,1744716638663,-420.0,0.00021777,2]
[358099603,1744716638673,-420.0,0.00021881,2]
[358099606,1744716638683,-296.619544,0.00022898,2]
[358099608,1744716638694,-361.3987948,0.00022914,2]
[358099610,1744716638704,-1047.0361795,0.00022933,2]
[358099612,1744716638713,-420.08908737,0.00023,3]
[358099614,1744716638723,-1762.75483092,0.00023578,2]
[358099616,1744716638733,-156.87571,0.00023712,3]
[358099618,1744716638746,-587.0,0.00023712,2]
[358099620,1744716638756,-5161.46695094,0.00023799,3]
[358099622,1744716638766,-10521.22178417,0.000238,2]
[358099624,1744716638775,-460.15609477,0.000239,2]
[358099626,1744716638785,-156.8657715,0.000239,2]
[358099628,1744716638795,-156.6056338,0.000239,2]
[358099630,1744716638805,-360.6579598,0.000239,2]
[358099632,1744716638815,-310.6610457,0.000239,2]
[358099634,1744716638825,-360.6579598,0.000239,2]
[358099636,1744716638835,-360.6579598,0.000239,2]
[358099638,1744716638844,-360.6579598,0.000239,2]
[358099640,1744716638854,-153.0,0.000239,2]
[358099642,1744716638863,-156.1825083,0.000239,2]
[358099644,1744716638872,-156.79,0.000239,2]
[358099646,1744716638882,-4889.35231821,0.000239,5]
[358099648,1744716638892,-4889.35231807,0.000239,5]
[358099650,1744716638902,-4889.35231807,0.000239,5]
[358099652,1744716638912,-587.0,0.00023941,2]
[358099654,1744716638922,-500.0,0.00023999,2]
[358099656,1744716638931,-175.55767791,0.00023999,2]
[358099658,1744716638941,-55063.96719264,0.00024,2]
[358099660,1744716638951,-213.6678568,0.00024,2]
[358099662,1744716638961,-1000.0,0.00024,2]
[358099664,1744716638971,-169.42368943,0.00024,3]
[358099666,1744716638981,-319.0,0.00024,3]
[358099668,1744716638992,-150.659,0.00024011,2]
[358099670,1744716639002,-159.0,0.00024188,3]
[358099672,1744716639012,-166.0,0.00024188,3]
[358099674,1744716639023,-159.0,0.00024188,3]
[358099676,1744716639033,-159.0,0.00024188,3]
[358099678,1744716639042,-159.58198728,0.00024188,3]
[358099680,1744716639052,-319.0,0.00024188,3]
[358099683,1744716639062,-319.0,0.00024188,3]
[358099685,1744716639072,-319.0,0.00024188,3]
[358099687,1744716639081,-300.26677753,0.00024188,3]
[358099689,1744716639091,-500.0,0.00024274,2]
[358099691,1744716639101,-500.0,0.00024274,2]
[358099693,1744716639110,-155.25712407,0.00024274,2]
[358099695,1744716639120,-151.0,0.00024274,2]
[358099697,1744716639129,-151.0,0.00024274,2]
[358099699,1744716639139,-151.0,0.00024274,2]
[358099700,1744716639149,-151.0,0.00024274,2]
[358099702,1744716639159,-151.69150345,0.00024274,2]
[358099704,1744716639169,-152.29400463,0.00024274,2]
[358099706,1744716639179,-151.0,0.00024274,2]
[358099709,1744716639189,-151.0,0.00024274,2]
[358099710,1744716639199,-202.48972551,0.00024274,2]
[358099713,1744716639208,-151.4276287,0.00024274,2]
[358099715,1744716639218,-166.9338385,0.00024274,2]
[358099717,1744716639228,-151.20215919,0.00024274,2]
[358099719,1744716639238,-151.0,0.00024274,2]
[358099721,1744716639248,-151.0,0.00024274,2]
[358099723,1744716639258,-500.0,0.00024274,2]
[358099725,1744716639268,-675.0,0.00024274,2]
[358099727,1744716639279,-152.18160442,0.00024274,2]
[358099729,1744716639294,-151.0,0.00024274,2]
[358099731,1744716639304,-151.0,0.00024274,2]
[358099733,1744716639314,-151.0,0.00024274,2]
[358099735,1744716639323,-287.24141937,0.00024274,2]
[358099737,1744716639334,-153.31923928,0.00024274,2]
[358099739,1744716639343,-500.0,0.00024274,2]
[358099741,1744716639354,-151.0,0.00024274,2]
[358099744,1744716639365,-151.0,0.00024274,2]
[358099746,1744716639376,-151.0,0.00024274,2]
[358099748,1744716639386,-151.0,0.00024274,2]
[358099750,1744716639395,-200.9157503,0.000243,2]
[358099752,1744716639406,-170.52731341,0.00024357,6]
[358099754,1744716639415,-1509.6239266,0.0002441,2]
[358099756,1744716639425,-707.0,0.00024524,2]
[358099758,1744716639435,-547.498,0.00024524,2]
[358099760,1744716639445,-2249.049,0.00024524,2]
[358099762,1744716639457,-548.69069401,0.00024548,2]
[358099764,1744716639467,-599.80856761,0.00024548,2]
[358099766,1744716639478,-151.89566953,0.00024548,2]
[358099768,1744716639488,-151.0,0.00024548,2]
[358099770,1744716639499,-151.0,0.00024548,2]
[358099772,1744716639509,-151.0,0.00024548,2]
[358099774,1744716639519,-151.0,0.00024548,2]
[358099776,1744716639530,-151.41914812,0.00024548,2]
[358099778,1744716639540,-198.89594404,0.00024548,2]
[358099780,1744716639550,-151.0,0.00024548,2]
[358099782,1744716639559,-500.0,0.00024548,2]
[358099784,1744716639569,-675.0,0.00024548,2]
[358099786,1744716639579,-151.0,0.00024548,2]
[358099788,1744716639589,-207.15256034,0.00024548,2]
[358099790,1744716639598,-152.26790199,0.00024548,2]
[358099792,1744716639608,-500.0,0.00024548,2]
[358099794,1744716639618,-151.0,0.00024548,2]
[358099796,1744716639628,-151.0,0.00024548,2]
[358099798,1744716639637,-151.0,0.00024548,2]
[358099800,1744716639647,-461.79132209,0.00024557,2]
[358099803,1744716639656,-250.0,0.000246,30]
[358099805,1744716639667,-461.79132206,0.00024623,2]
[358099807,1744716639676,-248.90959667,0.00024642,2]
[358099809,1744716639685,-151.0,0.00024642,2]
[358099811,1744716639695,-302.0,0.00024642,2]
[358099813,1744716639705,-207.4,0.00024642,2]
[358099815,1744716639715,-14342.72630992,0.00024657,2]
[358099817,1744716639724,-2779.21242235,0.00024657,3]
[358099819,1744716639734,-160.0,0.00024657,3]
[358099821,1744716639745,-160.0,0.00024657,3]
[358099823,1744716639755,-160.0,0.00024657,3]
[358099825,1744716639765,-838.16197378,0.00024657,3]
[358099827,1744716639774,-160.0,0.00024657,3]
[358099829,1744716639784,-420.08908737,0.00024657,3]
[358099831,1744716639794,-500.0,0.00024657,2]
[358099833,1744716639804,-500.0,0.00024657,2]
[358099835,1744716639815,-247.70992754,0.00024657,2]
[358099837,1744716639825,-500.0,0.00024657,2]
[358099839,1744716639834,-500.0,0.00024657,2]
[358099841,1744716639844,-500.0,0.00024657,2]
[358099843,1744716639854,-500.0,0.00024657,2]
[358099845,1744716639863,-500.0,0.00024657,2]
[358099847,1744716639873,-627.86072017,0.00024657,2]
[358099849,1744716639883,-544.03386395,0.00024657,2]
[358099852,1744716639894,-500.0,0.00024657,2]
[358099854,1744716639904,-500.0,0.00024657,2]
[358099858,1744716639915,-500.0,0.00024657,2]
[358099860,1744716639924,-500.0,0.00024657,2]
[358099862,1744716639934,-500.0,0.00024657,2]
[358099864,1744716639943,-500.0,0.00024657,2]
[358099866,1744716639952,-500.0,0.00024657,2]
[358099868,1744716639962,-500.0,0.00024657,2]
[358099870,1744716639971,-500.0,0.00024657,2]
[358099872,1744716639981,-500.0,0.00024657,2]
[358099874,1744716639991,-500.0,0.00024657,2]
[358099876,1744716640000,-500.0,0.00024657,2]
[358099878,1744716640010,-500.0,0.00024657,2]
[358099880,1744716640019,-500.0,0.00024657,2]
[358099882,1744716640028,-535.97229,0.00024657,2]
[358099884,1744716640038,-500.0,0.00024657,2]
[358099886,1744716640047,-585.96,0.00024657,2]
[358099888,1744716640057,-500.0,0.00024657,2]
[358099891,1744716640066,-500.0,0.00024657,2]
[358099893,1744716640076,-1055.53,0.00024657,2]
[358099895,1744716640085,-1385.54,0.00024657,2]
[358099897,1744716640096,-2181.57,0.00024657,2]
[358099899,1744716640106,-500.0,0.00024657,2]
[358099900,1744716640116,-500.0,0.00024657,2]
[358099903,1744716640127,-500.0,0.00024657,2]
[358099905,1744716640137,-152.611639,0.00024657,7]
[358099907,1744716640147,-675.24,0.00024657,2]
[358099909,1744716640157,-694.55,0.00024657,2]
[358099911,1744716640166,-218.02782108,0.00024657,2]
[358099913,1744716640176,-500.0,0.00024657,2]
[358099915,1744716640186,-500.0,0.00024657,2]
[358099917,1744716640197,-500.0,0.00024657,2]
[358099919,1744716640208,-500.0,0.00024657,2]
[358099921,1744716640218,-500.0,0.00024657,2]
[358099923,1744716640228,-1093.1,0.00024657,2]
[358099925,1744716640238,-500.0,0.00024657,2]
[358099927,1744716640248,-500.0,0.00024657,2]
[358099929,1744716640258,-500.0,0.00024657,2]
[358099931,1744716640268,-500.0,0.00024657,2]
[358099933,1744716640278,-500.0,0.00024657,2]
[358099935,1744716640292,-500.0,0.00024657,2]
[358099937,1744716640302,-500.0,0.00024657,2]
[358099939,1744716640312,-500.0,0.00024657,2]
[358099941,1744716640323,-500.0,0.00024657,2]
[358099943,1744716640333,-500.0,0.00024657,2]
[358099945,1744716640344,-500.0,0.00024657,2]
[358099948,1744716640354,-760.75,0.00024657,2]
[358099950,1744716640366,-500.0,0.00024657,2]
[358099952,1744716640376,-513.51,0.00024657,2]
[358099954,1744716640386,-500.0,0.00024657,2]
[358099956,1744716640397,-500.0,0.00024657,2]
[358099958,1744716640407,-236.93493792,0.00024657,2]
[358099960,1744716640417,-500.0,0.00024657,2]
[358099962,1744716640427,-500.0,0.00024657,2]
[358099964,1744716640437,-715.5,0.00024657,2]
[358099966,1744716640447,-500.0,0.00024657,2]
[358099968,1744716640457,-500.0,0.00024657,2]
[358099970,1744716640466,-505.62,0.00024657,2]
[358099972,1744716640476,-500.0,0.00024657,2]
[358099974,1744716640486,-500.0,0.00024657,2]
[358099976,1744716640497,-500.0,0.00024657,2]
[358099978,1744716640507,-500.0,0.00024657,2]
[358099980,1744716640517,-500.0,0.00024657,2]
[358099982,1744716640527,-500.0,0.00024657,2]
[358099985,1744716640538,-909.54,0.00024657,2]
[358099987,1744716640547,-206.1589777,0.00024657,2]
[358099989,1744716640557,-800.98,0.00024657,2]
[358099991,1744716640567,-500.0,0.00024657,2]
[358099993,1744716640577,-500.0,0.00024657,2]
[358099995,1744716640586,-883.76,0.00024657,2]
[358099997,1744716640596,-268.26244641,0.00024657,2]
[358099999,1744716640605,-500.0,0.00024657,2]
[358100001,1744716640615,-500.0,0.00024657,2]
[358100003,1744716640625,-500.0,0.00024657,2]
[358100005,1744716640635,-151.0,0.00024657,7]
[358100007,1744716640645,-151.0,0.00024657,7]
[358100009,1744716640654,-151.0,0.00024657,7]
[358100011,1744716640664,-151.0,0.00024657,7]
[358100013,1744716640674,-151.0,0.00024657,7]
[358100015,1744716640683,-151.0,0.00024657,7]
[358100017,1744716640693,-151.0,0.00024657,7]
[358100037,1744716640871,-500.0,0.00024657,2]
[358100039,1744716640889,-503.13,0.00024657,2]
[358100042,1744716640899,-500.0,0.00024657,2]
[358100043,1744716640908,-349.19696873,0.00024657,2]
[358100045,1744716640918,-616.74,0.00024657,2]
[358100047,1744716640927,-512.91509891,0.00024657,2]
[358100049,1744716640937,-500.0,0.00024657,2]
[358100052,1744716640947,-500.0,0.00024657,2]
[358100054,1744716640957,-500.0,0.00024657,2]
[358100056,1744716640967,-500.0,0.00024657,2]
[358100058,1744716640977,-713.07,0.00024657,2]
[358100060,1744716640987,-500.0,0.00024657,2]
[358100062,1744716640997,-387.68656958,0.00024657,2]
[358100064,1744716641007,-500.0,0.00024657,2]
[358100066,1744716641017,-500.0,0.00024657,2]
[358100068,1744716641027,-500.0,0.00024657,2]
[358100070,1744716641037,-151.0,0.00024657,7]
[358100072,1744716641046,-500.0,0.00024657,2]
[358100074,1744716641055,-500.0,0.00024657,2]
[358100076,1744716641064,-870.93,0.00024657,2]
[358100078,1744716641074,-500.0,0.00024657,2]
[358100080,1744716641084,-615.38,0.00024657,2]
[358100081,1744716641093,-500.0,0.00024657,2]
[358100082,1744716641103,-2119.87,0.00024657,2]
[358100083,1744716641112,-964.86,0.00024657,2]
[358100084,1744716641122,-500.0,0.00024657,2]
[358100085,1744716641131,-500.0,0.00024657,2]
[358100086,1744716641141,-500.0,0.00024657,2]
[358100087,1744716641151,-500.0,0.00024657,2]
[358100088,1744716641160,-784.51,0.00024657,2]
[358100089,1744716641170,-500.0,0.00024657,2]
[358100090,1744716641179,-500.0,0.00024657,2]
[358100091,1744716641190,-1019.1,0.00024657,2]
[358100092,1744716641199,-775.03,0.00024657,2]
[358100093,1744716641209,-500.0,0.00024657,2]
[358100094,1744716641218,-1035.43,0.00024657,2]
[358100095,1744716641227,-500.0,0.00024657,2]
[358100096,1744716641237,-500.0,0.00024657,2]
[358100097,1744716641246,-674.8,0.00024657,2]
[358100098,1744716641256,-500.0,0.00024657,2]
[358100099,1744716641266,-500.0,0.00024657,2]
[358100100,1744716641276,-500.0,0.00024657,2]
[358100101,1744716641286,-500.0,0.00024657,2]
[358100103,1744716641300,-500.0,0.00024657,2]
[358100105,1744716641310,-500.0,0.00024657,2]
[358100107,1744716641320,-500.0,0.00024657,2]
[358100109,1744716641331,-558.28,0.00024657,2]
[358100111,1744716641342,-500.0,0.00024657,2]
[358100113,1744716641352,-568.39,0.00024657,2]
[358100115,1744716641362,-151.0,0.00024657,7]
[358100117,1744716641372,-151.0,0.00024657,7]
[358100119,1744716641381,-151.0,0.00024657,7]
[358100121,1744716641391,-603.13,0.00024657,2]
[358100123,1744716641401,-1074.21,0.00024657,2]
[358100125,1744716641411,-500.0,0.00024657,2]
[358100127,1744716641421,-500.0,0.00024657,2]
[358100129,1744716641431,-885.95,0.00024657,2]
[358100131,1744716641440,-863.54,0.00024657,2]
[358100133,1744716641449,-529.34,0.00024657,2]
[358100135,1744716641459,-504.94,0.00024657,2]
[358100137,1744716641468,-759.64,0.00024657,2]
[358100138,1744716641478,-155.93229057,0.00024657,2]
[358100140,1744716641487,-500.0,0.00024657,2]
[358100143,1744716641497,-500.0,0.00024657,2]
[358100145,1744716641507,-859.79,0.00024657,2]
[358100147,1744716641517,-500.0,0.00024657,2]
[358100149,1744716641527,-500.0,0.00024657,2]
[358100151,1744716641537,-793.01,0.00024657,2]
[358100153,1744716641547,-500.0,0.00024657,2]
[358100155,1744716641557,-500.0,0.00024657,2]
[358100157,1744716641567,-500.0,0.00024657,2]
[358100159,1744716641577,-500.0,0.00024657,2]
[358100161,1744716641587,-500.0,0.00024657,2]
[358100163,1744716641596,-500.0,0.00024657,2]
[358100165,1744716641606,-705.13,0.00024657,2]
[358100167,1744716641616,-530.86,0.00024657,2]
[358100169,1744716641625,-500.0,0.00024657,2]
[358100171,1744716641635,-842.49,0.00024657,2]
[358100173,1744716641645,-500.0,0.00024657,2]
[358100175,1744716641655,-500.0,0.00024657,2]
[358100177,1744716641664,-732.67,0.00024657,2]
[358100179,1744716641674,-1568.5,0.00024657,2]
[358100181,1744716641683,-500.0,0.00024657,2]
[358100183,1744716641693,-500.0,0.00024657,2]
[358100185,1744716641703,-257.327527,0.00024657,7]
[358100187,1744716641712,-500.0,0.00024657,2]
[358100189,1744716641722,-697.23,0.00024657,2]
[358100191,1744716641732,-500.0,0.00024657,2]
[358100193,1744716641742,-500.0,0.00024657,2]
[358100195,1744716641752,-225.88369535,0.00024657,2]
[358100197,1744716641761,-500.0,0.00024657,2]
[358100199,1744716641772,-500.0,0.00024657,2]
[358100201,1744716641782,-500.0,0.00024657,2]
[358100203,1744716641791,-184.07279774,0.00024657,2]
[358100205,1744716641801,-500.0,0.00024657,2]
[358100207,1744716641811,-500.0,0.00024657,2]
[358100209,1744716641821,-529.48197077,0.00024657,2]
[358100211,1744716641830,-500.0,0.00024657,2]
[358100213,1744716641840,-151.0,0.00024657,7]
[358100215,1744716641850,-151.0,0.00024657,7]
[358100217,1744716641860,-664.76,0.00024657,2]
[358100219,1744716641869,-151.0,0.00024657,7]
[358100221,1744716641879,-151.0,0.00024657,7]
[358100223,1744716641889,-151.0,0.00024657,7]
[358100225,1744716641899,-151.0,0.00024657,7]
[358100227,1744716641910,-151.0,0.00024657,7]
[358100229,1744716641920,-151.0,0.00024657,7]
[358100231,1744716641929,-500.0,0.00024657,2]
[358100233,1744716641939,-151.0,0.00024657,7]
[358100235,1744716641949,-151.0,0.00024657,7]
[358100237,1744716641958,-151.0,0.00024657,7]
[358100239,1744716641968,-151.0,0.00024657,7]
[358100242,1744716641979,-151.0,0.00024657,7]
[358100244,1744716641990,-151.0,0.00024657,7]
[358100246,1744716642000,-151.0,0.00024657,7]
[358100248,1744716642010,-151.0,0.00024657,7]
[358100250,1744716642021,-151.0,0.00024657,7]
[358100252,1744716642030,-151.0,0.00024657,7]
[358100254,1744716642040,-151.0,0.00024657,7]
[358100256,1744716642050,-500.0,0.00024657,2]
[358100258,1744716642060,-151.0,0.00024657,7]
[358100260,1744716642069,-151.0,0.00024657,7]
[358100262,1744716642078,-157.399103,0.00024657,7]
[358100264,1744716642088,-151.0,0.00024657,7]
[358100266,1744716642097,-151.0,0.00024657,7]
[358100268,1744716642107,-151.0,0.00024657,7]
[358100270,1744716642116,-500.0,0.00024657,2]
[358100272,1744716642126,-1502.71,0.00024657,2]
[358100274,1744716642136,-324.24767234,0.00024657,2]
[358100276,1744716642145,-500.0,0.00024657,2]
[358100278,1744716642155,-500.0,0.00024657,2]
[358100280,1744716642165,-500.0,0.00024657,2]
[358100282,1744716642175,-500.0,0.00024657,2]